[Event "Turkish Cup 2022"]
[Site "Sakarya"]
[Date "2022.03.30"]
[Round "9.4"]
[White "Gulbeyaz, Emir"]
[Black "Kilic, Eray"]
[Result "0-1"]
[ECO "D02"]
[WhiteElo "2218"]
[BlackElo "2088"]
[Annotator "NA"]
[PlyCount "104"]
[EventDate "2022.03.25"]
[EventType "swiss"]
[EventCountry "TUR"]
[SourceTitle "playchess.com"]
[Source "ChessBase"]
[SourceQuality "1"]
[TimeControl "5400+30"]

1. d4 {[%emt 0:03:00]} Nf6 {[%emt 0:01:00]} 2. Nf3 {[%emt 0:00:30]} g6 {[%emt 0:00:30]} 3. Nbd2 {[%emt 0:00:30]} d5 {[%emt 0:00:30]} 4. e3 {[%emt 0:00:30]} Bg7 {[%emt 0:00:30]} 5. b4 {[%emt 0:00:30]} O-O {[%emt 0:00:30]} 6. Bb2 {[%emt 0:00:30]} Bf5 {[%emt 0:00:30]} 7. c4 {[%emt 0:00:30]} c6 {[%emt 0:00:30]} 8. Be2 {[%emt 0:01:30]} dxc4 {[%emt 0:02:30]} 9. Bxc4 {[%emt 0:01:30]} Ne4 {[%emt 0:02:30]} 10. Nxe4 {[%emt 0:00:30]} Bxe4 {[%emt 0:00:30]} 11. O-O {[%emt 0:01:30]} Nd7 {[%emt 0:03:30]} 12. Nd2 {[%emt 0:05:30]} Bd5 {[%emt 0:00:00]} 13. e4 {[%emt 0:00:30]} Bxc4 {[%emt 0:02:00]} 14. Nxc4 {[%emt 0:00:30]} Nb6 {[%emt 0:01:30]} 15. Na5 {[%emt 0:02:30]} Qd7 {[%emt 0:00:30]} 16. Qc2 {[%emt 0:06:30]} Rac8 {[%emt 0:09:30]} 17. Rfd1 {[%emt 0:00:30]} f5 {[%emt 0:05:30]} 18. Nb3 {[%emt 0:07:30]} fxe4 {[%emt 0:08:30]} 19. Qxe4 {[%emt 0:00:30]} Qd5 {[%emt 0:04:30]} 20. Re1 {[%emt 0:06:30]} Nc4 {[%emt 0:11:30]} 21. Bc3 {[%emt 0:02:30]} Nd6 {[%emt 0:02:30]} 22. Qxe7 {[%emt 0:08:30]} Rce8 {[%emt 0:02:30]} 23. Qd7 {[%emt 0:17:30]} Ne4 {[%emt 0:17:30]} 24. Qxd5+ {[%emt 0:06:30]} cxd5 {[%emt 0:00:30]} 25. Bb2 {[%emt 0:02:30]} Rxf2 {[%emt 0:02:30]} 26. Rxe4 {[%emt 0:00:30]} Ref8 {[%emt 0:00:30]} 27. Re8 {[%emt 0:00:30]} Rxb2 {[%emt 0:00:30]} 28. Rxf8+ {[%emt 0:00:00]} Bxf8 {[%emt 0:00:30]} 29. Rc1 {[%emt 0:00:00]} Rxa2 {[%emt 0:00:30]} 30. Nc5 {[%emt 0:03:30]} b6 {[%emt 0:05:10]} 31. Nd3 {[%emt 0:01:30]} Rd2 {[%emt 0:02:19]} 32. Rc3 {[%emt 0:00:30]} a5 {[%emt 0:00:50]} 33. bxa5 {[%emt 0:00:30]} bxa5 {[%emt 0:00:00]} 34. Nc5 {[%emt 0:01:30]} Bg7 {[%emt 0:01:57]} 35. Ne6 {[%emt 0:01:09]} Bf6 {[%emt 0:03:27]} 36. Rc7 {[%emt 0:02:49]} Re2 {[%emt 0:01:11]} 37. Rc6 {[%emt 0:00:45]} Kf7 {[%emt 0:00:44]} 38. Nc7 {[%emt 0:00:28]} Bxd4+ {[%emt 0:00:48]} 39. Kf1 {[%emt 0:00:30]} Rf2+ {[%emt 0:00:30]} 40. Ke1 {[%emt 0:00:00]} Rxg2 {[%emt 0:00:00]} 41. Ne6 {[%emt 0:00:00]} Bf6 {[%emt 0:00:42]} 42. Nf4 {[%emt 0:00:00]} Rxh2 {[%emt 0:01:01]} 43. Rc7+ {[%emt 0:00:23]} Ke8 {[%emt 0:00:30]} 44. Nxd5 {[%emt 0:00:30]} Bh4+ {[%emt 0:00:00]} 45. Kf1 {[%emt 0:00:00]} h5 {[%emt 0:00:48]} 46. Rg7 {[%emt 0:00:00]} Bg3 {[%emt 0:04:50]} 47. Rxg6 {[%emt 0:01:06]} h4 {[%emt 0:00:11]} 48. Ne3 {[%emt 0:00:02]} a4 {[%emt 0:00:33]} 49. Ng2 {[%emt 0:09:30]} a3 {[%emt 0:01:08]} 50. Ra6 {[%emt 0:00:33]} h3 {[%emt 0:00:19]} 51. Rxa3 {[%emt 0:00:14]} Rh1+ {[%emt 0:00:30]} 52. Ke2 {[%emt 0:00:30]} hxg2 {[%emt 0:00:00]} 0-1

[Event "Turkish Cup 2022"]
[Site "Sakarya"]
[Date "2022.03.30"]
[Round "9.5"]
[White "Samani, Yamac"]
[Black "Isik, Alparslan"]
[Result "1-0"]
[ECO "D02"]
[WhiteElo "2257"]
[BlackElo "2328"]
[Annotator "NA"]
[PlyCount "54"]
[EventDate "2022.03.25"]
[EventType "swiss"]
[EventCountry "TUR"]
[SourceTitle "playchess.com"]
[Source "ChessBase"]
[SourceQuality "1"]
[TimeControl "5400+30"]

1. Nf3 {[%emt 0:02:00]} d5 {[%emt 0:01:00]} 2. d4 {[%emt 0:02:30]} Nf6 {[%emt 0:02:30]} 3. Bf4 {[%emt 0:00:30]} c5 {[%emt 0:00:30]} 4. e3 {[%emt 0:03:30]} Nc6 {[%emt 0:01:30]} 5. c3 {[%emt 0:04:30]} e6 {[%emt 0:00:30]} 6. Nbd2 {[%emt 0:00:30]} cxd4 {[%emt 0:00:30]} 7. exd4 {[%emt 0:00:30]} Nh5 {[%emt 0:01:30]} 8. Be5 {[%emt 0:06:30]} f6 {[%emt 0:02:30]} 9. Bg3 {[%emt 0:03:30]} Bd6 {[%emt 0:01:30]} 10. Bd3 {[%emt 0:08:30]} Nf4 {[%emt 0:14:30]} 11. Bxf4 {[%emt 0:00:30]} Bxf4 {[%emt 0:00:30]} 12. Qc2 {[%emt 0:00:00]} e5 {[%emt 0:17:30]} 13. O-O {[%emt 0:15:00]} e4 {[%emt 0:26:30]} 14. Nxe4 {[%emt 0:16:30]} dxe4 {[%emt 0:00:30]} 15. Bxe4 {[%emt 0:00:00]} Ne7 {[%emt 0:03:30]} 16. Rfe1 {[%emt 0:03:00]} Kf8 {[%emt 0:11:18]} 17. Re2 {[%emt 0:04:30]} g6 {[%emt 0:03:23]} 18. Rae1 {[%emt 0:04:30]} Bf5 {[%emt 0:04:46]} 19. Nh4 {[%emt 0:04:51]} Qd7 {[%emt 0:01:35]} 20. Nxf5 {[%emt 0:09:43]} gxf5 {[%emt 0:00:14]} 21. Bd3 {[%emt 0:01:32]} Bd6 {[%emt 0:00:58]} 22. Re6 {[%emt 0:00:52]} Kg7 {[%emt 0:00:57]} 23. Qe2 {[%emt 0:00:52]} Ng6 {[%emt 0:02:14]} 24. Bxf5 {[%emt 0:00:37]} Rhf8 {[%emt 0:01:00]} 25. g3 {[%emt 0:01:08]} Qc7 {[%emt 0:00:35]} 26. Qg4 {[%emt 0:01:12]} Kf7 {[%emt 0:00:53]} 27. Bxg6+ {[%emt 0:02:06]} hxg6 {[%emt 0:00:00]} 1-0

[Event "Turkish Cup 2022"]
[Site "Sakarya"]
[Date "2022.03.30"]
[Round "9.6"]
[White "Guven, Oguz Kagan"]
[Black "Sevgi, Volkan"]
[Result "1/2-1/2"]
[ECO "E61"]
[WhiteElo "2157"]
[BlackElo "2344"]
[Annotator "NA"]
[PlyCount "52"]
[EventDate "2022.03.25"]
[EventType "swiss"]
[EventCountry "TUR"]
[SourceTitle "playchess.com"]
[Source "ChessBase"]
[SourceQuality "1"]
[TimeControl "5400+30"]

1. d4 {[%emt 0:02:00]} Nf6 {[%emt 0:01:00]} 2. Bf4 {[%emt 0:00:30]} b6 {[%emt 0:02:30]} 3. e3 {[%emt 0:01:30]} Bb7 {[%emt 0:00:30]} 4. Nf3 {[%emt 0:00:30]} g6 {[%emt 0:00:30]} 5. c4 {[%emt 0:00:30]} Bg7 {[%emt 0:00:30]} 6. h3 {[%emt 0:02:30]} O-O {[%emt 0:01:30]} 7. Nc3 {[%emt 0:00:30]} d6 {[%emt 0:02:30]} 8. Be2 {[%emt 0:01:30]} Nbd7 {[%emt 0:00:30]} 9. Qc2 {[%emt 0:00:30]} e5 {[%emt 0:05:30]} 10. dxe5 {[%emt 0:09:30]} Nxe5 {[%emt 0:03:30]} 11. Bxe5 {[%emt 0:08:30]} dxe5 {[%emt 0:00:30]} 12. O-O {[%emt 0:00:30]} e4 {[%emt 0:08:30]} 13. Rfd1 {[%emt 0:06:30]} Qe7 {[%emt 0:00:30]} 14. Nd4 {[%emt 0:00:30]} c5 {[%emt 0:01:30]} 15. Ndb5 {[%emt 0:07:30]} a6 {[%emt 0:00:30]} 16. Nd6 {[%emt 0:00:30]} Bc6 {[%emt 0:00:00]} 17. Rd2 {[%emt 0:00:30]} Rfd8 {[%emt 0:03:00]} 18. Rad1 {[%emt 0:00:30]} Bf8 {[%emt 0:01:30]} 19. Ndxe4 {[%emt 0:04:30]} Nxe4 {[%emt 0:01:30]} 20. Rxd8 {[%emt 0:00:30]} Rxd8 {[%emt 0:02:30]} 21. Rxd8 {[%emt 0:00:30]} Qxd8 {[%emt 0:00:30]} 22. Nxe4 {[%emt 0:00:30]} Bxe4 {[%emt 0:00:30]} 23. Qxe4 {[%emt 0:00:30]} Qd2 {[%emt 0:00:30]} 24. Qd3 {[%emt 0:00:30]} Qxb2 {[%emt 0:00:30]} 25. a4 {[%emt 0:00:30]} Qb4 {[%emt 0:00:30]} 26. Qd1 {[%emt 0:02:30]} Qc3 {[%emt 0:10:30]} 1/2-1/2

[Event "Turkish Cup 2022"]
[Site "Sakarya"]
[Date "2022.03.30"]
[Round "9.7"]
[White "Koc, Ilkay"]
[Black "Huseyinoglu, Alihan"]
[Result "0-1"]
[ECO "A85"]
[WhiteElo "1995"]
[BlackElo "2312"]
[Annotator "NA"]
[PlyCount "62"]
[EventDate "2022.03.25"]
[EventType "swiss"]
[EventCountry "TUR"]
[SourceTitle "playchess.com"]
[Source "ChessBase"]
[SourceQuality "1"]
[TimeControl "5400+30"]

1. d4 {[%emt 0:01:00]} g6 {[%emt 0:01:00]} 2. c4 {[%emt 0:00:30]} Bg7 {[%emt 0:00:30]} 3. Nf3 {[%emt 0:00:30]} f5 {[%emt 0:00:30]} 4. Nc3 {[%emt 0:02:30]} Nf6 {[%emt 0:02:30]} 5. Bf4 {[%emt 0:03:30]} d6 {[%emt 0:04:30]} 6. h3 {[%emt 0:00:30]} O-O {[%emt 0:05:30]} 7. e3 {[%emt 0:01:30]} c5 {[%emt 0:11:30]} 8. Be2 {[%emt 0:04:30]} Ne4 {[%emt 0:06:30]} 9. Rc1 {[%emt 0:08:30]} Nc6 {[%emt 0:04:30]} 10. d5 {[%emt 0:08:30]} Nxc3 {[%emt 0:05:30]} 11. bxc3 {[%emt 0:00:30]} Na5 {[%emt 0:03:30]} 12. O-O {[%emt 0:01:30]} Bd7 {[%emt 0:06:30]} 13. Bh2 {[%emt 0:04:30]} a6 {[%emt 0:05:30]} 14. e4 {[%emt 0:14:30]} fxe4 {[%emt 0:04:30]} 15. Ng5 {[%emt 0:00:30]} b5 {[%emt 0:06:30]} 16. cxb5 {[%emt 0:02:30]} axb5 {[%emt 0:01:30]} 17. Bg4 {[%emt 0:00:30]} Bh6 {[%emt 0:03:30]} 18. Ne6 {[%emt 0:03:30]} Bxe6 {[%emt 0:00:30]} 19. Bxe6+ {[%emt 0:00:30]} Kh8 {[%emt 0:00:30]} 20. Rb1 {[%emt 0:01:30]} Nc4 {[%emt 0:02:30]} 21. Rxb5 {[%emt 0:01:30]} Nd2 {[%emt 0:03:30]} 22. Re1 {[%emt 0:01:30]} Rxa2 {[%emt 0:00:30]} 23. Bg3 {[%emt 0:04:30]} Qa8 {[%emt 0:07:03]} 24. Bh4 {[%emt 0:04:30]} Qa6 {[%emt 0:01:17]} 25. c4 {[%emt 0:02:30]} Qa7 {[%emt 0:00:14]} 26. Kh1 {[%emt 0:09:06]} Bf4 {[%emt 0:01:54]} 27. Bg3 {[%emt 0:08:11]} Bxg3 {[%emt 0:01:11]} 28. fxg3 {[%emt 0:00:02]} Qa3 {[%emt 0:01:26]} 29. Qc1 {[%emt 0:06:23]} Qxg3 {[%emt 0:04:25]} 30. Rb2 {[%emt 0:00:18]} Qxe1+ {[%emt 0:00:42]} 31. Qxe1 {[%emt 0:00:30]} Rxb2 {[%emt 0:00:00]} 0-1

[Event "Turkish Cup 2022"]
[Site "Sakarya"]
[Date "2022.03.30"]
[Round "9.8"]
[White "Eren, Ataberk"]
[Black "Tarhan, Adar"]
[Result "1-0"]
[ECO "C78"]
[WhiteElo "2306"]
[BlackElo "2125"]
[Annotator "NA"]
[PlyCount "130"]
[EventDate "2022.03.25"]
[EventType "swiss"]
[EventCountry "TUR"]
[SourceTitle "playchess.com"]
[Source "ChessBase"]
[SourceQuality "1"]
[TimeControl "5400+30"]

1. e4 {[%emt 0:03:00]} e5 {[%emt 0:01:00]} 2. Nf3 {[%emt 0:00:30]} Nc6 {[%emt 0:00:30]} 3. Bb5 {[%emt 0:00:30]} a6 {[%emt 0:00:30]} 4. Ba4 {[%emt 0:00:30]} Nf6 {[%emt 0:00:30]} 5. O-O {[%emt 0:00:30]} b5 {[%emt 0:00:30]} 6. Bb3 {[%emt 0:00:30]} Bb7 {[%emt 0:00:00]} 7. d3 {[%emt 0:01:30]} Bc5 {[%emt 0:00:00]} 8. c3 {[%emt 0:09:30]} d6 {[%emt 0:01:30]} 9. Nbd2 {[%emt 0:00:30]} O-O {[%emt 0:03:30]} 10. h3 {[%emt 0:00:30]} Bb6 {[%emt 0:00:30]} 11. Re1 {[%emt 0:00:30]} Ne7 {[%emt 0:00:30]} 12. Nf1 {[%emt 0:00:30]} Ng6 {[%emt 0:00:30]} 13. Ng3 {[%emt 0:00:30]} Re8 {[%emt 0:02:30]} 14. a4 {[%emt 0:01:30]} h6 15. Be3 {[%emt 0:10:30]} Bxe3 {[%emt 0:05:00]} 16. fxe3 {[%emt 0:00:30]} d5 {[%emt 0:07:30]} 17. exd5 {[%emt 0:01:30]} Bxd5 {[%emt 0:01:30]} 18. Bxd5 {[%emt 0:04:30]} Qxd5 {[%emt 0:01:30]} 19. e4 {[%emt 0:02:30]} Qc6 {[%emt 0:00:30]} 20. axb5 {[%emt 0:11:30]} axb5 {[%emt 0:00:30]} 21. Rxa8 {[%emt 0:00:30]} Qxa8 {[%emt 0:00:30]} 22. Qb3 {[%emt 0:00:30]} Qc6 {[%emt 0:00:30]} 23. Kh2 {[%emt 0:04:30]} Nf4 {[%emt 0:08:30]} 24. d4 {[%emt 0:06:30]} exd4 {[%emt 0:00:30]} 25. Nxd4 {[%emt 0:01:30]} Qc4 {[%emt 0:00:30]} 26. Qc2 {[%emt 0:18:54]} b4 {[%emt 0:09:30]} 27. Qd2 {[%emt 0:01:20]} bxc3 {[%emt 0:05:30]} 28. bxc3 {[%emt 0:00:56]} Nd3 {[%emt 0:01:30]} 29. Re3 {[%emt 0:00:24]} Nc5 {[%emt 0:01:30]} 30. Qc2 {[%emt 0:01:08]} h5 {[%emt 0:11:30]} 31. Kg1 {[%emt 0:00:30]} h4 {[%emt 0:00:30]} 32. Ngf5 {[%emt 0:00:30]} Rxe4 {[%emt 0:00:30]} 33. Qf2 {[%emt 0:04:25]} Rxe3 {[%emt 0:03:30]} 34. Qxe3 {[%emt 0:00:12]} Nce4 {[%emt 0:01:30]} 35. Ne2 {[%emt 0:03:17]} g6 {[%emt 0:03:30]} 36. Nxh4 {[%emt 0:01:17]} Nd5 {[%emt 0:01:30]} 37. Qf3 {[%emt 0:00:35]} Nd2 {[%emt 0:03:30]} 38. Qg4 {[%emt 0:01:56]} Qd3 {[%emt 0:01:30]} 39. Ng3 {[%emt 0:03:33]} Ne7 {[%emt 0:10:59]} 40. Kh2 {[%emt 0:04:37]} c5 {[%emt 0:06:34]} 41. Qg5 {[%emt 0:01:27]} Qd6 {[%emt 0:00:12]} 42. Kh1 {[%emt 0:00:00]} Kh7 {[%emt 0:04:05]} 43. Qe3 {[%emt 0:00:34]} Nc4 {[%emt 0:00:45]} 44. Qf2 {[%emt 0:00:14]} Ne5 {[%emt 0:00:48]} 45. Ne4 {[%emt 0:01:02]} Qd1+ {[%emt 0:00:30]} 46. Kh2 {[%emt 0:00:03]} c4 {[%emt 0:00:33]} 47. Qf6 {[%emt 0:00:37]} N7c6 {[%emt 0:02:54]} 48. Ng5+ {[%emt 0:00:14]} Kg8 {[%emt 0:00:00]} 49. Nxf7 {[%emt 0:00:45]} Qh5 {[%emt 0:02:36]} 50. Nxe5 {[%emt 0:01:33]} Nxe5 {[%emt 0:00:12]} 51. Qe6+ {[%emt 0:00:05]} Kg7 {[%emt 0:00:44]} 52. Qe7+ {[%emt 0:00:01]} Kg8 {[%emt 0:00:30]} 53. Qe8+ {[%emt 0:00:30]} Kg7 {[%emt 0:00:00]} 54. Qe7+ {[%emt 0:00:05]} Kg8 {[%emt 0:00:02]} 55. g4 {[%emt 0:00:28]} Qh6 {[%emt 0:01:16]} 56. Qe6+ {[%emt 0:01:08]} Kh7 {[%emt 0:00:30]} 57. Qxe5 {[%emt 0:00:30]} Qxh4 {[%emt 0:00:30]} 58. Qc7+ {[%emt 0:00:30]} Kh8 {[%emt 0:00:30]} 59. Kg2 {[%emt 0:00:00]} Qe1 {[%emt 0:00:00]} 60. Qxc4 {[%emt 0:00:29]} Qd2+ {[%emt 0:00:03]} 61. Kf3 {[%emt 0:00:30]} Qd1+ {[%emt 0:00:30]} 62. Kg3 {[%emt 0:00:42]} Qe1+ {[%emt 0:00:00]} 63. Kf4 {[%emt 0:00:35]} Qf2+ {[%emt 0:00:48]} 64. Kg5 {[%emt 0:00:30]} Qe3+ {[%emt 0:00:02]} 65. Qf4 {[%emt 0:00:02]} Qe8 {[%emt 0:02:17]} 1-0

[Event "Turkish Cup 2022"]
[Site "Sakarya"]
[Date "2022.03.30"]
[Round "9.10"]
[White "Maruflu, Enes Yusuf"]
[Black "Kirilmaz, Emre"]
[Result "1/2-1/2"]
[ECO "B11"]
[WhiteElo "1945"]
[BlackElo "2229"]
[Annotator "NA"]
[PlyCount "130"]
[EventDate "2022.03.25"]
[EventType "swiss"]
[EventCountry "TUR"]
[SourceTitle "playchess.com"]
[Source "ChessBase"]
[SourceQuality "1"]
[TimeControl "5400+30"]

1. e4 {[%emt 0:01:00]} c6 {[%emt 0:09:00]} 2. Nf3 {[%emt 0:00:30]} d5 {[%emt 0:00:30]} 3. Nc3 {[%emt 0:00:30]} Bg4 {[%emt 0:00:30]} 4. h3 {[%emt 0:00:30]} Bxf3 {[%emt 0:00:30]} 5. Qxf3 {[%emt 0:00:30]} e6 {[%emt 0:00:30]} 6. d3 {[%emt 0:00:00]} g6 {[%emt 0:02:30]} 7. Bd2 {[%emt 0:00:00]} Bg7 {[%emt 0:00:30]} 8. g4 {[%emt 0:00:00]} Qb6 {[%emt 0:07:30]} 9. O-O-O {[%emt 0:00:00]} Ne7 {[%emt 0:01:30]} 10. Qg3 {[%emt 0:03:30]} Nd7 {[%emt 0:02:30]} 11. Bg2 {[%emt 0:00:30]} O-O-O {[%emt 0:06:30]} 12. f4 {[%emt 0:07:30]} Nc5 {[%emt 0:08:30]} 13. e5 {[%emt 0:06:30]} d4 {[%emt 0:08:30]} 14. Ne4 {[%emt 0:00:30]} Nd5 {[%emt 0:01:30]} 15. Nxc5 {[%emt 0:13:30]} Qxc5 {[%emt 0:00:30]} 16. Qe1 {[%emt 0:01:30]} a5 {[%emt 0:20:30]} 17. Kb1 {[%emt 0:05:30]} Bf8 {[%emt 0:07:30]} 18. h4 {[%emt 0:03:30]} Qb5 {[%emt 0:05:47]} 19. Bxd5 {[%emt 0:02:30]} Rxd5 {[%emt 0:00:20]} 20. h5 {[%emt 0:02:30]} Ba3 {[%emt 0:00:22]} 21. Bc1 {[%emt 0:05:30]} Rf8 {[%emt 0:03:24]} 22. Ka1 {[%emt 0:03:30]} Be7 {[%emt 0:01:20]} 23. Qe4 {[%emt 0:01:30]} a4 {[%emt 0:01:42]} 24. Rh2 {[%emt 0:06:30]} a3 {[%emt 0:03:14]} 25. b3 {[%emt 0:00:30]} Qa5 {[%emt 0:02:15]} 26. g5 {[%emt 0:05:30]} b5 {[%emt 0:01:14]} 27. Rdh1 {[%emt 0:03:30]} Kc7 {[%emt 0:00:58]} 28. Kb1 {[%emt 0:00:30]} c5 {[%emt 0:00:24]} 29. Bd2 {[%emt 0:03:30]} Qa8 {[%emt 0:00:21]} 30. hxg6 {[%emt 0:01:30]} hxg6 {[%emt 0:00:09]} 31. Rh7 {[%emt 0:01:30]} c4 {[%emt 0:02:32]} 32. Rg7 {[%emt 0:00:30]} Kd7 {[%emt 0:00:29]} 33. Rhh7 {[%emt 0:00:30]} cxb3 {[%emt 0:00:44]} 34. cxb3 {[%emt 0:01:30]} Qe8 {[%emt 0:00:35]} 35. Qg2 {[%emt 0:03:03]} Kc6 {[%emt 0:00:32]} 36. Qh1 {[%emt 0:01:42]} Kb6 {[%emt 0:00:27]} 37. Qf3 {[%emt 0:01:22]} Rd7 {[%emt 0:01:07]} 38. Rh1 {[%emt 0:01:19]} Rc7 {[%emt 0:01:15]} 39. Qf2 {[%emt 0:03:40]} Rh8 {[%emt 0:01:07]} 40. Qg2 {[%emt 0:03:14]} Rxh1+ {[%emt 0:00:57]} 41. Qxh1 {[%emt 0:00:01]} Qf8 {[%emt 0:00:12]} 42. Rh7 {[%emt 0:00:39]} Bb4 {[%emt 0:00:07]} 43. Rh8 {[%emt 0:03:08]} Qxh8 {[%emt 0:00:38]} 44. Qxh8 {[%emt 0:00:30]} Bxd2 {[%emt 0:00:00]} 45. Qb8+ {[%emt 0:00:22]} Kc6 {[%emt 0:00:12]} 46. Qa8+ {[%emt 0:00:00]} Kb6 {[%emt 0:00:32]} 47. Qxa3 {[%emt 0:00:03]} b4 {[%emt 0:00:47]} 48. Qa4 {[%emt 0:02:18]} Rc1+ {[%emt 0:00:47]} 49. Kb2 {[%emt 0:00:00]} Rc6 {[%emt 0:00:30]} 50. Qa8 {[%emt 0:00:43]} Bc1+ {[%emt 0:00:39]} 51. Kb1 {[%emt 0:00:33]} Ba3 {[%emt 0:00:29]} 52. Qd8+ {[%emt 0:02:13]} Kb5 {[%emt 0:00:23]} 53. Qd7 {[%emt 0:00:40]} Kb6 {[%emt 0:00:30]} 54. Qxd4+ {[%emt 0:00:42]} Ka6 {[%emt 0:00:50]} 55. Qg1 {[%emt 0:00:27]} Rc3 {[%emt 0:00:00]} 56. d4 {[%emt 0:01:40]} Kb5 {[%emt 0:00:05]} 57. Qd1 {[%emt 0:02:48]} Kc6 {[%emt 0:00:30]} 58. Qh1+ {[%emt 0:00:30]} Kc7 {[%emt 0:00:30]} 59. Qf1 {[%emt 0:00:25]} Kc6 {[%emt 0:00:06]} 60. Qg2+ {[%emt 0:00:30]} Kc7 {[%emt 0:00:30]} 61. Qd2 {[%emt 0:00:30]} Kc6 {[%emt 0:00:30]} 62. Qg2+ {[%emt 0:00:24]} Kc7 {[%emt 0:00:03]} 63. Qh1 {[%emt 0:00:44]} Kb6 {[%emt 0:00:37]} 64. Qg1 {[%emt 0:01:15]} Kc6 {[%emt 0:00:30]} 65. Qg2+ {[%emt 0:00:30]} Kb6 {[%emt 0:00:38]} 1/2-1/2

[Event "Turkish Cup 2022"]
[Site "Sakarya"]
[Date "2022.03.30"]
[Round "9.11"]
[White "Kilic, Efe Mert"]
[Black "Daghan, Devran"]
[Result "1/2-1/2"]
[ECO "B12"]
[WhiteElo "2220"]
[BlackElo "1985"]
[Annotator "NA"]
[PlyCount "195"]
[EventDate "2022.03.25"]
[EventType "swiss"]
[EventCountry "TUR"]
[SourceTitle "playchess.com"]
[Source "ChessBase"]
[SourceQuality "1"]
[TimeControl "5400+30"]

1. e4 {[%emt 0:03:00]} c6 {[%emt 0:01:00]} 2. d4 {[%emt 0:00:30]} d5 {[%emt 0:00:30]} 3. e5 {[%emt 0:02:30]} Bf5 {[%emt 0:01:30]} 4. Nf3 {[%emt 0:00:30]} e6 {[%emt 0:00:30]} 5. Be2 {[%emt 0:00:30]} Ne7 {[%emt 0:00:30]} 6. O-O {[%emt 0:00:30]} Ng6 {[%emt 0:00:30]} 7. c3 {[%emt 0:00:30]} Nd7 {[%emt 0:00:30]} 8. Be3 {[%emt 0:00:30]} f6 {[%emt 0:00:00]} 9. exf6 {[%emt 0:05:30]} Qxf6 {[%emt 0:00:00]} 10. Bg5 {[%emt 0:00:30]} Qf7 {[%emt 0:00:00]} 11. Nh4 {[%emt 0:00:30]} Nxh4 {[%emt 0:05:00]} 12. Bxh4 {[%emt 0:00:30]} Bd6 {[%emt 0:00:30]} 13. Bg3 {[%emt 0:01:30]} Bxg3 {[%emt 0:01:30]} 14. fxg3 {[%emt 0:01:30]} Qe7 {[%emt 0:01:30]} 15. g4 {[%emt 0:08:30]} Bg6 {[%emt 0:04:30]} 16. Nd2 {[%emt 0:00:00]} e5 {[%emt 0:01:30]} 17. dxe5 {[%emt 0:13:00]} Nxe5 {[%emt 0:01:30]} 18. Qa4 {[%emt 0:10:30]} Qc5+ {[%emt 0:05:30]} 19. Qd4 {[%emt 0:03:30]} Qxd4+ {[%emt 0:02:30]} 20. cxd4 {[%emt 0:00:30]} Nf7 {[%emt 0:00:30]} 21. b4 {[%emt 0:03:30]} a6 {[%emt 0:08:30]} 22. a4 {[%emt 0:09:30]} O-O {[%emt 0:04:30]} 23. b5 {[%emt 0:00:30]} axb5 {[%emt 0:04:30]} 24. axb5 {[%emt 0:00:30]} Rae8 {[%emt 0:03:30]} 25. Rf2 {[%emt 0:01:30]} cxb5 {[%emt 0:18:30]} 26. Bxb5 {[%emt 0:03:30]} Rb8 {[%emt 0:05:30]} 27. Nf3 {[%emt 0:10:30]} Nd6 {[%emt 0:04:30]} 28. Rb2 {[%emt 0:00:30]} Ra8 {[%emt 0:01:30]} 29. Re1 {[%emt 0:03:28]} Be4 {[%emt 0:11:12]} 30. Nd2 {[%emt 0:07:44]} Ra5 {[%emt 0:05:25]} 31. Bd7 {[%emt 0:01:31]} b5 {[%emt 0:00:26]} 32. Nxe4 {[%emt 0:00:54]} dxe4 {[%emt 0:00:10]} 33. Bc6 {[%emt 0:00:36]} Ra6 {[%emt 0:02:15]} 34. Bd5+ {[%emt 0:01:31]} Kh8 {[%emt 0:00:01]} 35. h3 {[%emt 0:01:32]} Ra4 {[%emt 0:01:09]} 36. Bc6 {[%emt 0:02:38]} Rb8 {[%emt 0:02:53]} 37. Reb1 {[%emt 0:00:24]} Ra6 {[%emt 0:01:03]} 38. d5 {[%emt 0:00:48]} g5 {[%emt 0:00:59]} 39. Rb3 {[%emt 0:00:59]} Rab6 {[%emt 0:00:52]} 40. Rb4 {[%emt 0:01:20]} Kg7 {[%emt 0:00:12]} 41. Ra1 {[%emt 0:00:31]} Rf8 {[%emt 0:02:19]} 42. Rab1 {[%emt 0:00:59]} Rf7 {[%emt 0:01:27]} 43. R4b3 {[%emt 0:00:28]} Kf6 {[%emt 0:00:30]} 44. Bxb5 {[%emt 0:00:57]} Rfb7 {[%emt 0:00:41]} 45. Ba4 {[%emt 0:00:05]} Rxb3 {[%emt 0:00:06]} 46. Rxb3 {[%emt 0:01:19]} Ra7 {[%emt 0:00:39]} 47. Bb5 {[%emt 0:01:08]} Ra2 {[%emt 0:00:50]} 48. Kf1 {[%emt 0:00:30]} Ke5 {[%emt 0:00:00]} 49. Be2 {[%emt 0:00:02]} Kxd5 {[%emt 0:00:16]} 50. Rb8 {[%emt 0:00:31]} e3 {[%emt 0:00:39]} 51. Bf3+ {[%emt 0:00:24]} Ke5 {[%emt 0:01:14]} 52. Ke1 {[%emt 0:00:16]} Nc4 {[%emt 0:00:04]} 53. Re8+ {[%emt 0:00:41]} Kd4 {[%emt 0:00:20]} 54. Rd8+ {[%emt 0:00:12]} Kc3 {[%emt 0:00:30]} 55. Rc8 {[%emt 0:00:00]} Ra1+ {[%emt 0:01:09]} 56. Ke2 {[%emt 0:00:25]} Ra2+ {[%emt 0:00:30]} 57. Ke1 {[%emt 0:00:00]} Kd4 {[%emt 0:00:17]} 58. Rd8+ {[%emt 0:00:05]} Ke5 {[%emt 0:00:15]} 59. Rd5+ {[%emt 0:01:18]} Ke6 {[%emt 0:00:30]} 60. Rd3 {[%emt 0:01:09]} Ra1+ {[%emt 0:01:01]} 61. Ke2 {[%emt 0:00:08]} Ke5 {[%emt 0:00:21]} 62. Rd5+ {[%emt 0:00:30]} Ke6 {[%emt 0:00:01]} 63. Rc5 {[%emt 0:01:19]} Ra2+ {[%emt 0:00:36]} 64. Kd3 {[%emt 0:01:07]} e2 {[%emt 0:00:35]} 65. Bxe2 {[%emt 0:00:17]} Ne5+ {[%emt 0:00:30]} 66. Ke3 {[%emt 0:00:30]} Ra3+ {[%emt 0:00:30]} 67. Kf2 {[%emt 0:00:30]} h6 {[%emt 0:00:30]} 68. Rb5 {[%emt 0:00:30]} Rc3 {[%emt 0:00:30]} 69. Rb6+ {[%emt 0:00:00]} Rc6 {[%emt 0:00:32]} 70. Rb7 {[%emt 0:00:21]} Kf6 {[%emt 0:00:30]} 71. Rb2 {[%emt 0:00:30]} Ng6 {[%emt 0:00:00]} 72. Bf3 {[%emt 0:00:27]} Rd6 {[%emt 0:00:29]} 73. Be4 {[%emt 0:00:13]} Ke5 {[%emt 0:00:00]} 74. Bf5 {[%emt 0:00:19]} Nf4 {[%emt 0:00:00]} 75. Ke3 {[%emt 0:01:25]} Ra6 {[%emt 0:00:08]} 76. Rb5+ {[%emt 0:00:17]} Nd5+ {[%emt 0:00:05]} 77. Kf2 {[%emt 0:00:14]} Ra2+ {[%emt 0:00:20]} 78. Kg3 {[%emt 0:00:32]} Kd4 {[%emt 0:00:27]} 79. Rb8 {[%emt 0:00:44]} Nf4 {[%emt 0:00:19]} 80. Rd8+ {[%emt 0:00:23]} Ke3 {[%emt 0:01:09]} 81. Re8+ {[%emt 0:00:10]} Kd4 {[%emt 0:00:18]} 82. Rd8+ {[%emt 0:00:38]} Ke5 {[%emt 0:00:28]} 83. Re8+ {[%emt 0:00:42]} Kd6 {[%emt 0:00:30]} 84. Be4 {[%emt 0:01:04]} Re2 {[%emt 0:00:24]} 85. Rd8+ {[%emt 0:00:40]} Ke7 {[%emt 0:00:07]} 86. Rd4 {[%emt 0:00:16]} Rxg2+ {[%emt 0:01:32]} 87. Bxg2 {[%emt 0:00:07]} Ne2+ {[%emt 0:00:02]} 88. Kf2 {[%emt 0:01:00]} Nxd4 {[%emt 0:00:01]} 89. Bf1 {[%emt 0:00:20]} Kd6 {[%emt 0:00:08]} 90. Kg3 {[%emt 0:00:00]} Ke5 {[%emt 0:00:01]} 91. h4 {[%emt 0:00:12]} Ke4 {[%emt 0:00:15]} 92. hxg5 {[%emt 0:00:04]} hxg5 {[%emt 0:00:07]} 93. Ba6 {[%emt 0:00:18]} Ke3 {[%emt 0:00:07]} 94. Bc4 {[%emt 0:00:22]} Nc2 {[%emt 0:01:22]} 95. Ba6 {[%emt 0:00:15]} Na3 {[%emt 0:00:04]} 96. Bf1 {[%emt 0:00:15]} Nb1 {[%emt 0:00:05]} 97. Bg2 {[%emt 0:00:37]} Nc3 {[%emt 0:00:26]} 98. Bf3 {[%emt 0:00:12]} 1/2-1/2